[Event "GER-ch Youth-U14w 2022"]
[Site "Willingen"]
[Date "2022.06.09"]
[Round "7.6"]
[White "Fock, Madiha"]
[Black "Jacobasch, Ronja"]
[Result "1/2-1/2"]
[ECO "B09"]
[WhiteElo "1468"]
[BlackElo "1441"]
[Annotator "NA RC COMBH"]
[PlyCount "149"]
[EventDate "2022.06.05"]
[EventType "swiss"]
[EventRounds "9"]
[EventCountry "GER"]
[SourceTitle "playchess.com"]
[Source "ChessBase"]
[SourceQuality "1"]
[TimeControl "40/4500+30:900+30"]

1. e4 {[%emt 0:00:00]} d6 {[%emt 0:00:00]} 2. d4 {[%emt 0:00:00]} Nf6 {[%emt 0:00:00]} 3. Nc3 {[%emt 0:00:00]} g6 {[%emt 0:00:00]} 4. f4 {[%emt 0:00:00]} Bg7 {[%emt 0:00:00]} 5. Nf3 {[%emt 0:00:00]} O-O {[%emt 0:00:00]} 6. e5 {[%emt 0:00:00]} Nfd7 {[%emt 0:00:00]} 7. Bc4 {[%emt 0:00:00]} dxe5 {[%emt 0:00:00]} 8. fxe5 {[%emt 0:00:00]} e6 {[%emt 0:00:00]} 9. O-O {[%emt 0:00:34]} c5 {[%emt 0:00:45]} 10. Nb5 {[%emt 0:14:32]} cxd4 {[%emt 0:05:10]} 11. Bf4 {[%emt 0:10:54]} Nc6 {[%emt 0:05:16]} 12. Re1 {[%emt 0:01:45]} Qb6 {[%emt 0:13:35]} 13. Nbxd4 {[%emt 0:07:16]} Qc5 {[%emt 0:15:56]} 14. Bb5 {[%emt 0:07:32]} Ncxe5 {[%emt 0:05:21]} 15. Nxe5 {[%emt 0:00:54]} Bxe5 {[%emt 0:00:31]} 16. Bxe5 {[%emt 0:02:45]} Nxe5 {[%emt 0:00:14]} 17. b4 {[%emt 0:02:16]} Qc7 {[%emt 0:01:42]} 18. Qe2 {[%emt 0:02:41]} Nd7 {[%emt 0:01:29]} 19. Rad1 {[%emt 0:04:23]} Nf6 {[%emt 0:03:57]} 20. c4 {[%emt 0:01:46]} Bd7 {[%emt 0:01:22]} 21. Qf3 {[%emt 0:03:23]} Bxb5 {[%emt 0:10:33]} 22. Nxb5 {[%emt 0:01:36]} Qe7 {[%emt 0:01:38]} 23. Nd6 {[%emt 0:01:17]} b6 {[%emt 0:01:06]} 24. a3 {[%emt 0:02:07]} Rad8 {[%emt 0:04:42]} 25. Nb5 {[%emt 0:02:16]} Kg7 {[%emt 0:00:43]} 26. Nd4 {[%emt 0:01:37]} Rc8 {[%emt 0:03:31]} 27. Nc6 {[%emt 0:01:06]} Qc7 {[%emt 0:00:45]} 28. b5 {[%emt 0:02:07]} a6 {[%emt 0:01:16]} 29. a4 {[%emt 0:01:37]} axb5 {[%emt 0:00:55]} 30. axb5 {[%emt 0:00:06]} Nd7 {[%emt 0:01:17]} 31. Rf1 {[%emt 0:03:20]} f6 {[%emt 0:00:59]} 32. Ne7 {[%emt 0:01:14]} Rce8 {[%emt 0:00:44]} 33. Nc6 {[%emt 0:01:26]} Rf7 {[%emt 0:00:55]} 34. Ra1 {[%emt 0:01:17]} Ne5 {[%emt 0:00:54]} 35. Nxe5 {[%emt 0:01:06]} Qxe5 {[%emt 0:00:11]} 36. Qc6 {[%emt 0:02:45]} Qc5+ {[%emt 0:01:06]} 37. Qxc5 {[%emt 0:00:09]} bxc5 {[%emt 0:00:01]} 38. Rfb1 {[%emt 0:00:46]} Rb7 {[%emt 0:00:38]} 39. Ra6 {[%emt 0:00:58]} Rc7 {[%emt 0:02:54]} 40. b6 {[%emt 0:04:50]} Rb7 {[%emt 0:02:09]} 41. Rba1 {[%emt 0:00:00]} Kh6 {[%emt 0:00:00]} 42. R1a5 {[%emt 0:00:00]} Rc8 {[%emt 0:00:00]} 43. Rb5 {[%emt 0:00:00]} Rc6 {[%emt 0:00:00]} 44. Kf2 {[%emt 0:00:00]} e5 {[%emt 0:00:00]} 45. Raa5 {[%emt 0:00:00]} Rbxb6 {[%emt 0:00:00]} 46. Rxb6 {[%emt 0:00:00]} Rxb6 {[%emt 0:00:00]} 47. Rxc5 {[%emt 0:00:00]} Kg5 {[%emt 0:00:00]} 48. Rb5 {[%emt 0:00:00]} Rc6 {[%emt 0:00:00]} 49. c5 {[%emt 0:00:07]} Kf5 {[%emt 0:00:00]} 50. Ke3 {[%emt 0:00:54]} Ke6 {[%emt 0:00:00]} 51. g4 {[%emt 0:01:37]} f5 {[%emt 0:06:58]} 52. gxf5+ {[%emt 0:02:39]} gxf5 {[%emt 0:01:00]} 53. Rb7 {[%emt 0:00:52]} h6 {[%emt 0:02:43]} 54. Rh7 {[%emt 0:01:05]} Kd5 {[%emt 0:01:46]} 55. Rf7 {[%emt 0:00:49]} f4+ {[%emt 0:01:04]} 56. Kf3 {[%emt 0:00:24]} Kxc5 {[%emt 0:01:01]} 57. Ke4 {[%emt 0:00:52]} Re6 {[%emt 0:01:46]} 58. Rc7+ {[%emt 0:01:02]} Kd6 {[%emt 0:00:23]} 59. Rf7 {[%emt 0:00:45]} Rg6 {[%emt 0:01:27]} 60. Ra7 {[%emt 0:01:14]} Ke6 {[%emt 0:02:07]} 61. Ra5 {[%emt 0:01:01]} Rg5 {[%emt 0:00:22]} 62. Ra6+ {[%emt 0:00:12]} Kf7 {[%emt 0:00:31]} 63. Rxh6 {[%emt 0:01:34]} Rg6 {[%emt 0:01:16]} 64. Rh3 {[%emt 0:02:53]} Kf6 {[%emt 0:01:11]} 65. Rh5 {[%emt 0:01:09]} Rg5 {[%emt 0:00:50]} 66. Rh6+ {[%emt 0:01:42]} Kg7 {[%emt 0:00:09]} 67. Ra6 {[%emt 0:00:45]} Rh5 {[%emt 0:00:37]} 68. Ra2 {[%emt 0:00:13]} Kg6 {[%emt 0:00:43]} 69. Rf2 {[%emt 0:03:18]} Kf6 {[%emt 0:01:17]} 70. Rg2 {[%emt 0:00:24]} Rg5 {[%emt 0:00:36]} 71. Rf2 {[%emt 0:00:02]} Kg6 {[%emt 0:01:12]} 72. Re2 {[%emt 0:01:35]} Kh5 {[%emt 0:00:24]} 73. Kf3 {[%emt 0:00:06]} Kh4 {[%emt 0:00:42]} 74. Re1 {[%emt 0:00:27]} Kh3 {[%emt 0:00:54]} 75. Re2 {[%emt 0:00:02]} 1/2-1/2

[Event "GER-ch Youth-U14w 2022"]
[Site "Willingen"]
[Date "2022.06.09"]
[Round "7.7"]
[White "Stepanjan, Marianne"]
[Black "Flierl, Veronika"]
[Result "1-0"]
[ECO "B13"]
[WhiteElo "1489"]
[BlackElo "1427"]
[Annotator "NA RC COMBH"]
[PlyCount "37"]
[EventDate "2022.06.05"]
[EventType "swiss"]
[EventRounds "9"]
[EventCountry "GER"]
[SourceTitle "playchess.com"]
[Source "ChessBase"]
[SourceQuality "1"]
[TimeControl "40/4500+30:900+30"]

1. e4 {[%emt 0:00:00]} c6 {[%emt 0:00:00]} 2. d4 {[%emt 0:00:00]} d5 {[%emt 0:00:00]} 3. exd5 {[%emt 0:00:00]} cxd5 {[%emt 0:00:00]} 4. Bd3 {[%emt 0:00:00]} Nc6 {[%emt 0:00:00]} 5. c3 {[%emt 0:00:00]} Qc7 {[%emt 0:00:00]} 6. Be3 {[%emt 0:00:00]} Nf6 {[%emt 0:00:00]} 7. h3 {[%emt 0:00:00]} e6 {[%emt 0:00:00]} 8. Nf3 {[%emt 0:00:00]} Bd6 {[%emt 0:00:00]} 9. O-O {[%emt 0:00:00]} h6 {[%emt 0:00:00]} 10. Re1 {[%emt 0:00:00]} O-O {[%emt 0:00:00]} 11. Nbd2 {[%emt 0:09:49]} Bd7 {[%emt 0:05:33]} 12. Nf1 {[%emt 0:18:29]} a6 {[%emt 0:02:37]} 13. Qc1 {[%emt 0:03:36]} Rfe8 {[%emt 0:13:24]} 14. Bxh6 {[%emt 0:25:03]} gxh6 {[%emt 0:09:11]} 15. Qxh6 {[%emt 0:00:08]} Qd8 {[%emt 0:00:24]} 16. Ng5 {[%emt 0:03:01]} Bf4 {[%emt 0:02:29]} 17. Bh7+ {[%emt 0:00:53]} Nxh7 {[%emt 0:00:17]} 18. Qxh7+ {[%emt 0:00:05]} Kf8 {[%emt 0:00:21]} 19. Qxf7# 1-0

[Event "GER-ch Youth-U14w 2022"]
[Site "Willingen"]
[Date "2022.06.09"]
[Round "7.8"]
[White "Modali, Nikhilamrutha"]
[Black "Margaryan, Venera"]
[Result "0-1"]
[ECO "C10"]
[WhiteElo "1262"]
[BlackElo "1477"]
[Annotator "NA RC COMBH"]
[PlyCount "140"]
[EventDate "2022.06.05"]
[EventType "swiss"]
[EventRounds "9"]
[EventCountry "GER"]
[SourceTitle "playchess.com"]
[Source "ChessBase"]
[SourceQuality "1"]
[TimeControl "40/4500+30:900+30"]

1. e4 e6 {[%emt 0:00:00]} 2. d4 {[%emt 0:00:00]} d5 {[%emt 0:00:00]} 3. Nc3 {[%emt 0:00:00]} dxe4 {[%emt 0:00:00]} 4. Nxe4 {[%emt 0:00:00]} Nd7 {[%emt 0:00:00]} 5. Nf3 {[%emt 0:00:00]} Ngf6 {[%emt 0:00:00]} 6. Bd3 {[%emt 0:00:00]} c5 {[%emt 0:00:00]} 7. O-O {[%emt 0:00:00]} Be7 {[%emt 0:00:00]} 8. Nxf6+ {[%emt 0:00:00]} Nxf6 {[%emt 0:00:00]} 9. dxc5 {[%emt 0:00:00]} Bxc5 {[%emt 0:00:00]} 10. Bg5 {[%emt 0:00:25]} O-O {[%emt 0:00:00]} 11. Qe2 {[%emt 0:02:15]} h6 {[%emt 0:00:00]} 12. Bh4 {[%emt 0:03:24]} b6 {[%emt 0:04:42]} 13. Bxf6 {[%emt 0:02:34]} Qxf6 {[%emt 0:00:47]} 14. Qe4 {[%emt 0:01:23]} g6 {[%emt 0:15:25]} 15. Qxa8 {[%emt 0:00:46]} Qe7 {[%emt 0:07:13]} 16. Qe4 {[%emt 0:05:13]} Bb7 {[%emt 0:03:28]} 17. Qg4 {[%emt 0:03:25]} Qf6 {[%emt 0:07:36]} 18. Rae1 {[%emt 0:14:04]} Rd8 {[%emt 0:09:20]} 19. Ne5 {[%emt 0:07:15]} Rd4 {[%emt 0:07:50]} 20. Qg3 {[%emt 0:05:19]} Bd6 {[%emt 0:04:57]} 21. Bxg6 {[%emt 0:08:51]} fxg6 {[%emt 0:01:21]} 22. Qxg6+ {[%emt 0:01:26]} Qxg6 {[%emt 0:00:32]} 23. Nxg6 {[%emt 0:00:07]} Rg4 {[%emt 0:01:10]} 24. Ne7+ {[%emt 0:07:57]} Bxe7 {[%emt 0:00:30]} 25. f3 {[%emt 0:00:45]} Bc5+ {[%emt 0:01:21]} 26. Kh1 {[%emt 0:00:11]} Rg6 {[%emt 0:01:23]} 27. Rd1 {[%emt 0:01:19]} Bd5 {[%emt 0:04:06]} 28. b3 {[%emt 0:01:08]} b5 {[%emt 0:01:31]} 29. Rfe1 {[%emt 0:03:01]} Rg5 {[%emt 0:02:46]} 30. Rc1 {[%emt 0:03:05]} Kf7 {[%emt 0:04:00]} 31. c4 {[%emt 0:01:22]} bxc4 {[%emt 0:00:16]} 32. bxc4 {[%emt 0:00:01]} Bc6 {[%emt 0:00:47]} 33. Re2 {[%emt 0:01:09]} Bb4 {[%emt 0:04:28]} 34. Rb1 {[%emt 0:01:00]} a5 {[%emt 0:00:28]} 35. Rb3 {[%emt 0:00:36]} Bd6 {[%emt 0:02:11]} 36. Rb6 {[%emt 0:02:21]} Rc5 {[%emt 0:00:48]} 37. Rc2 {[%emt 0:00:27]} Bc7 {[%emt 0:01:18]} 38. Rb1 {[%emt 0:00:36]} Kf6 {[%emt 0:01:15]} 39. Re1 {[%emt 0:01:05]} Bb5 {[%emt 0:01:09]} 40. Re4 {[%emt 0:01:51]} Bc6 {[%emt 0:02:09]} 41. Ree2 {[%emt 0:17:15]} Ba4 {[%emt 0:00:00]} 42. Rc3 {[%emt 0:00:00]} Be5 {[%emt 0:00:00]} 43. Rce3 {[%emt 0:00:00]} Bd7 {[%emt 0:00:00]} 44. g3 {[%emt 0:00:00]} Bd4 {[%emt 0:00:00]} 45. Rd3 {[%emt 0:00:00]} Rxc4 {[%emt 0:00:00]} 46. Re4 {[%emt 0:00:00]} e5 {[%emt 0:00:00]} 47. Rd1 {[%emt 0:00:00]} Bc6 {[%emt 0:00:00]} 48. Rdxd4 {[%emt 0:00:00]} Rxd4 {[%emt 0:00:37]} 49. Re3 {[%emt 0:00:00]} Rd1+ {[%emt 0:00:19]} 50. Kg2 {[%emt 0:00:00]} Rd2+ {[%emt 0:00:16]} 51. Kh3 {[%emt 0:00:00]} Bd7+ {[%emt 0:01:07]} 52. g4 {[%emt 0:00:00]} Rxa2 {[%emt 0:00:31]} 53. Kg3 {[%emt 0:00:00]} Rd2 {[%emt 0:01:15]} 54. h4 {[%emt 0:00:00]} a4 {[%emt 0:01:13]} 55. g5+ {[%emt 0:00:00]} hxg5 {[%emt 0:00:16]} 56. hxg5+ {[%emt 0:00:00]} Kxg5 {[%emt 0:01:23]} 57. Rxe5+ {[%emt 0:00:00]} Kf6 {[%emt 0:00:31]} 58. Ra5 {[%emt 0:00:00]} Rd3 {[%emt 0:01:26]} 59. Kf4 {[%emt 0:00:00]} a3 {[%emt 0:01:58]} 60. Ke4 {[%emt 0:00:00]} Rc3 {[%emt 0:00:37]} 61. Rd5 {[%emt 0:03:38]} Be6 {[%emt 0:01:04]} 62. Rd1 {[%emt 0:01:08]} a2 {[%emt 0:00:41]} 63. Ra1 {[%emt 0:02:46]} Rb3 {[%emt 0:01:32]} 64. Kd4 {[%emt 0:02:37]} Rb1 {[%emt 0:00:14]} 65. Rxa2 {[%emt 0:00:46]} Bxa2 {[%emt 0:00:06]} 66. f4 {[%emt 0:00:15]} Rd1+ {[%emt 0:00:27]} 67. Ke4 {[%emt 0:00:24]} Bd5+ {[%emt 0:00:07]} 68. Ke3 {[%emt 0:00:07]} Kf5 {[%emt 0:00:14]} 69. Ke2 {[%emt 0:00:06]} Rd4 {[%emt 0:00:11]} 70. Ke3 {[%emt 0:00:10]} Rxf4 {[%emt 0:00:07]} 0-1

[Event "GER-ch Youth-U14w 2022"]
[Site "Willingen"]
[Date "2022.06.09"]
[Round "7.9"]
[White "Ottlik, Marie"]
[Black "Hergenroeder, Cora"]
[Result "1-0"]
[ECO "B13"]
[WhiteElo "1442"]
[BlackElo "1453"]
[Annotator "NA RC COMBH"]
[PlyCount "87"]
[EventDate "2022.06.05"]
[EventType "swiss"]
[EventRounds "9"]
[EventCountry "GER"]
[SourceTitle "playchess.com"]
[Source "ChessBase"]
[SourceQuality "1"]
[TimeControl "40/4500+30:900+30"]

1. e4 {[%emt 0:00:00]} c6 {[%emt 0:00:00]} 2. d4 {[%emt 0:00:00]} d5 {[%emt 0:00:00]} 3. exd5 {[%emt 0:00:00]} cxd5 {[%emt 0:00:00]} 4. Bd3 {[%emt 0:00:00]} Nc6 {[%emt 0:00:00]} 5. c3 {[%emt 0:00:00]} Qc7 {[%emt 0:00:00]} 6. h3 {[%emt 0:00:00]} g6 {[%emt 0:00:00]} 7. Nf3 {[%emt 0:00:00]} Bf5 {[%emt 0:00:00]} 8. Bxf5 {[%emt 0:00:00]} gxf5 {[%emt 0:00:00]} 9. Bg5 {[%emt 0:00:00]} e6 {[%emt 0:00:00]} 10. Bh4 {[%emt 0:06:14]} h5 {[%emt 0:15:58]} 11. O-O {[%emt 0:12:57]} Be7 {[%emt 0:01:10]} 12. Nbd2 {[%emt 0:10:20]} Qd8 {[%emt 0:07:17]} 13. Bg3 {[%emt 0:05:45]} Bd6 {[%emt 0:19:09]} 14. Bxd6 {[%emt 0:06:26]} Qxd6 {[%emt 0:01:14]} 15. Qe2 {[%emt 0:03:27]} a6 {[%emt 0:03:32]} 16. Rae1 {[%emt 0:09:15]} O-O-O {[%emt 0:07:27]} 17. b4 {[%emt 0:05:22]} Nge7 {[%emt 0:06:58]} 18. Nh4 {[%emt 0:07:58]} Qf4 {[%emt 0:07:39]} 19. Ndf3 {[%emt 0:03:23]} Rdg8 {[%emt 0:02:14]} 20. b5 {[%emt 0:02:52]} axb5 {[%emt 0:01:12]} 21. Qxb5 {[%emt 0:00:19]} Ng6 {[%emt 0:02:21]} 22. Nxg6 {[%emt 0:02:42]} Rxg6 {[%emt 0:00:04]} 23. Rb1 {[%emt 0:00:53]} Nd8 {[%emt 0:01:16]} 24. Ne5 {[%emt 0:01:40]} Rg7 {[%emt 0:02:23]} 25. Qc5+ {[%emt 0:01:25]} Nc6 {[%emt 0:00:44]} 26. Nxc6 {[%emt 0:02:10]} bxc6 {[%emt 0:00:14]} 27. Qxc6+ {[%emt 0:00:11]} Qc7 {[%emt 0:00:10]} 28. Qa8+ {[%emt 0:01:03]} Kd7 {[%emt 0:00:21]} 29. Qxh8 {[%emt 0:00:11]} Rg5 {[%emt 0:02:39]} 30. Qf6 {[%emt 0:01:23]} Qd8 {[%emt 0:01:49]} 31. Qxd8+ {[%emt 0:00:41]} Kxd8 {[%emt 0:00:08]} 32. Rb7 {[%emt 0:00:16]} Ke8 {[%emt 0:00:32]} 33. a4 {[%emt 0:00:13]} Kf8 {[%emt 0:00:14]} 34. a5 {[%emt 0:00:08]} Kg7 {[%emt 0:00:07]} 35. a6 {[%emt 0:00:14]} Kf6 {[%emt 0:00:04]} 36. a7 {[%emt 0:00:09]} Rg8 {[%emt 0:00:44]} 37. Rb8 {[%emt 0:00:13]} Rxb8 {[%emt 0:00:05]} 38. axb8=Q {[%emt 0:00:11]} h4 {[%emt 0:00:09]} 39. Qd8+ {[%emt 0:00:24]} Kg6 {[%emt 0:00:18]} 40. Qxh4 {[%emt 0:00:18]} Kg7 {[%emt 0:00:32]} 41. Qh5 {[%emt 0:15:33]} Kf6 {[%emt 0:15:16]} 42. Ra1 {[%emt 0:00:27]} f4 {[%emt 0:00:16]} 43. Ra7 {[%emt 0:00:15]} f3 {[%emt 0:00:30]} 44. Rxf7# {[%emt 0:00:08]} 1-0

[Event "GER-ch Youth-U14w 2022"]
[Site "Willingen"]
[Date "2022.06.09"]
[Round "7.10"]
[White "Eichhorn, Mathilda"]
[Black "Müller, Cosima"]
[Result "0-1"]
[ECO "B35"]
[WhiteElo "1330"]
[BlackElo "1389"]
[Annotator "NA RC COMBH"]
[PlyCount "82"]
[EventDate "2022.06.05"]
[EventType "swiss"]
[EventRounds "9"]
[EventCountry "GER"]
[SourceTitle "playchess.com"]
[Source "ChessBase"]
[SourceQuality "1"]
[TimeControl "40/4500+30:900+30"]

1. e4 {[%emt 0:00:00]} c5 {[%emt 0:00:00]} 2. Nf3 {[%emt 0:00:00]} Nc6 {[%emt 0:00:00]} 3. d4 {[%emt 0:00:00]} cxd4 {[%emt 0:00:00]} 4. Nxd4 {[%emt 0:00:00]} Nf6 {[%emt 0:00:00]} 5. Nc3 {[%emt 0:00:00]} g6 {[%emt 0:00:00]} 6. Be3 {[%emt 0:00:00]} Bg7 {[%emt 0:00:00]} 7. Bc4 {[%emt 0:00:00]} O-O {[%emt 0:00:00]} 8. Bb3 {[%emt 0:00:00]} d6 {[%emt 0:00:00]} 9. f3 {[%emt 0:00:00]} Bd7 {[%emt 0:00:00]} 10. Qd2 {[%emt 0:00:00]} Rc8 {[%emt 0:00:00]} 11. O-O-O {[%emt 0:00:00]} Ne5 {[%emt 0:00:00]} 12. Qe2 {[%emt 0:00:00]} a6 {[%emt 0:03:54]} 13. Kb1 {[%emt 0:00:00]} b5 {[%emt 0:02:52]} 14. f4 {[%emt 0:28:17]} Nc4 {[%emt 0:16:04]} 15. Bc1 {[%emt 0:08:12]} Bg4 {[%emt 0:09:51]} 16. Nf3 {[%emt 0:00:29]} Nh5 {[%emt 0:02:21]} 17. h3 {[%emt 0:00:46]} Ng3 {[%emt 0:00:55]} 18. Qe1 {[%emt 0:01:30]} Bxf3 {[%emt 0:00:20]} 19. Qxg3 {[%emt 0:01:21]} Bxd1 {[%emt 0:00:08]} 20. Nxd1 {[%emt 0:00:51]} a5 {[%emt 0:04:17]} 21. h4 {[%emt 0:14:08]} a4 {[%emt 0:00:28]} 22. Bxc4 {[%emt 0:00:22]} Rxc4 {[%emt 0:00:10]} 23. Re1 {[%emt 0:03:42]} Qc7 {[%emt 0:03:28]} 24. Ne3 {[%emt 0:02:55]} Rc5 {[%emt 0:05:00]} 25. Nd5 {[%emt 0:03:57]} Qb7 {[%emt 0:00:49]} 26. Be3 {[%emt 0:12:08]} Rc4 {[%emt 0:01:02]} 27. Bd2 {[%emt 0:01:12]} e6 {[%emt 0:03:10]} 28. Nb4 {[%emt 0:01:11]} Rxe4 {[%emt 0:01:27]} 29. Rf1 {[%emt 0:04:00]} Re2 {[%emt 0:04:22]} 30. Rf2 {[%emt 0:00:12]} Qe4 {[%emt 0:00:59]} 31. Rxe2 {[%emt 0:00:59]} Qxe2 {[%emt 0:00:06]} 32. Bc1 {[%emt 0:00:55]} Rc8 {[%emt 0:02:00]} 33. a3 {[%emt 0:00:25]} Rc4 {[%emt 0:01:20]} 34. f5 {[%emt 0:01:26]} Be5 {[%emt 0:02:08]} 35. Qh3 {[%emt 0:01:47]} exf5 {[%emt 0:01:25]} 36. Qh1 {[%emt 0:00:22]} d5 {[%emt 0:01:43]} 37. g3 {[%emt 0:01:33]} Rc5 {[%emt 0:01:33]} 38. Ka1 {[%emt 0:00:48]} Qe4 {[%emt 0:01:16]} 39. Qh2 {[%emt 0:00:22]} Qf3 {[%emt 0:00:29]} 40. Qg1 {[%emt 0:00:11]} Qxa3+ {[%emt 0:00:30]} 41. Na2 {[%emt 0:15:51]} Rxc2 {[%emt 0:15:53]} 0-1

[Event "GER-ch Youth-U14w 2022"]
[Site "Willingen"]
[Date "2022.06.09"]
[Round "7.11"]
[White "Göb, Franziska"]
[Black "Brandt, Greta"]
[Result "1/2-1/2"]
[ECO "C01"]
[WhiteElo "1362"]
[BlackElo "1458"]
[Annotator "NA RC COMBH"]
[PlyCount "67"]
[EventDate "2022.06.05"]
[EventType "swiss"]
[EventRounds "9"]
[EventCountry "GER"]
[SourceTitle "playchess.com"]
[Source "ChessBase"]
[SourceQuality "1"]
[TimeControl "40/4500+30:900+30"]

1. e4 {[%emt 0:00:00]} e6 {[%emt 0:00:00]} 2. d4 {[%emt 0:00:00]} d5 {[%emt 0:00:00]} 3. exd5 {[%emt 0:00:00]} exd5 {[%emt 0:00:00]} 4. c4 {[%emt 0:00:00]} Bb4+ {[%emt 0:00:00]} 5. Nc3 {[%emt 0:00:00]} Nf6 {[%emt 0:00:00]} 6. Bd3 {[%emt 0:00:00]} dxc4 {[%emt 0:00:00]} 7. Bxc4 {[%emt 0:00:00]} O-O {[%emt 0:00:00]} 8. Nge2 {[%emt 0:00:00]} Nc6 {[%emt 0:00:00]} 9. O-O {[%emt 0:00:00]} Bg4 {[%emt 0:00:00]} 10. h3 {[%emt 0:00:00]} Bh5 {[%emt 0:00:00]} 11. Bg5 {[%emt 0:00:00]} h6 {[%emt 0:00:00]} 12. Bh4 {[%emt 0:00:00]} Bxc3 {[%emt 0:00:55]} 13. bxc3 {[%emt 0:00:00]} Re8 {[%emt 0:01:53]} 14. g4 {[%emt 0:00:00]} Bg6 {[%emt 0:01:02]} 15. f4 {[%emt 0:00:00]} Be4 {[%emt 0:06:45]} 16. Ng3 {[%emt 0:00:00]} Qd6 {[%emt 0:01:44]} 17. Nxe4 {[%emt 0:00:00]} Nxe4 {[%emt 0:00:51]} 18. Qc2 {[%emt 0:00:00]} Na5 {[%emt 0:07:14]} 19. Bd3 {[%emt 0:00:10]} Nf6 {[%emt 0:00:58]} 20. f5 {[%emt 0:01:48]} c5 {[%emt 0:02:47]} 21. dxc5 {[%emt 0:02:24]} Qxc5+ {[%emt 0:00:10]} 22. Kg2 {[%emt 0:01:26]} Qc6+ {[%emt 0:01:32]} 23. Kg1 {[%emt 0:02:00]} Nd5 {[%emt 0:03:21]} 24. Rfe1 {[%emt 0:03:10]} Rxe1+ {[%emt 0:09:49]} 25. Bxe1 {[%emt 0:00:37]} Nf4 {[%emt 0:00:26]} 26. Kh2 {[%emt 0:01:00]} Nxd3 {[%emt 0:00:45]} 27. Qxd3 {[%emt 0:00:11]} Qc4 {[%emt 0:02:02]} 28. Qxc4 {[%emt 0:00:38]} Nxc4 {[%emt 0:01:04]} 29. Bg3 {[%emt 0:00:42]} Re8 {[%emt 0:02:45]} 30. Re1 {[%emt 0:00:46]} Rxe1 {[%emt 0:01:06]} 31. Bxe1 {[%emt 0:00:10]} g6 {[%emt 0:01:21]} 32. fxg6 {[%emt 0:00:30]} fxg6 {[%emt 0:00:06]} 33. Bf2 {[%emt 0:00:35]} a6 {[%emt 0:00:13]} 34. Kg2 {[%emt 0:00:43]} 1/2-1/2

[Event "GER-ch Youth-U14w 2022"]
[Site "Willingen"]
[Date "2022.06.09"]
[Round "7.12"]
[White "Hoffmann, Sophia"]
[Black "Heuberger, Sandra"]
[Result "1/2-1/2"]
[ECO "D02"]
[WhiteElo "1289"]
[BlackElo "1101"]
[Annotator "NA RC COMBH"]
[PlyCount "83"]
[EventDate "2022.06.05"]
[EventType "swiss"]
[EventRounds "9"]
[EventCountry "GER"]
[SourceTitle "playchess.com"]
[Source "ChessBase"]
[SourceQuality "1"]
[TimeControl "40/4500+30:900+30"]

1. d4 {[%emt 0:00:00]} d5 {[%emt 0:00:00]} 2. Bf4 {[%emt 0:00:00]} Nf6 {[%emt 0:00:00]} 3. Nf3 {[%emt 0:00:00]} e6 {[%emt 0:00:00]} 4. c4 {[%emt 0:00:00]} Bd6 {[%emt 0:00:00]} 5. Bg3 {[%emt 0:00:00]} O-O {[%emt 0:00:00]} 6. e3 {[%emt 0:00:00]} b6 {[%emt 0:00:00]} 7. Bd3 {[%emt 0:00:00]} dxc4 {[%emt 0:00:00]} 8. Bxc4 {[%emt 0:00:00]} Bb7 {[%emt 0:00:00]} 9. O-O {[%emt 0:00:00]} Bxg3 {[%emt 0:00:00]} 10. fxg3 {[%emt 0:00:00]} Ng4 {[%emt 0:01:06]} 11. Qe2 {[%emt 0:00:00]} Nd7 {[%emt 0:05:51]} 12. Nbd2 {[%emt 0:00:00]} c5 {[%emt 0:06:51]} 13. Rad1 {[%emt 0:07:11]} cxd4 {[%emt 0:03:53]} 14. exd4 {[%emt 0:01:27]} Rc8 {[%emt 0:03:21]} 15. Bxe6 {[%emt 0:06:42]} Qe8 {[%emt 0:14:53]} 16. h3 {[%emt 0:12:13]} Ngf6 {[%emt 0:04:54]} 17. Bc4 {[%emt 0:01:14]} Qxe2 {[%emt 0:02:53]} 18. Bxe2 {[%emt 0:00:13]} Nd5 {[%emt 0:04:11]} 19. Rc1 {[%emt 0:07:30]} Rce8 {[%emt 0:04:20]} 20. Bc4 {[%emt 0:07:23]} N7f6 {[%emt 0:04:31]} 21. Ne5 {[%emt 0:03:29]} Rd8 {[%emt 0:04:06]} 22. Ndf3 {[%emt 0:04:35]} h6 {[%emt 0:03:14]} 23. Rfd1 {[%emt 0:05:51]} a6 {[%emt 0:02:48]} 24. a4 {[%emt 0:02:50]} Nd7 {[%emt 0:04:34]} 25. Kf2 {[%emt 0:02:39]} N5f6 {[%emt 0:02:34]} 26. g4 {[%emt 0:04:21]} Ne4+ {[%emt 0:01:36]} 27. Ke3 {[%emt 0:01:10]} Nd6 {[%emt 0:00:30]} 28. Ba2 {[%emt 0:00:41]} Nxe5 {[%emt 0:01:22]} 29. dxe5 {[%emt 0:00:58]} Rfe8 {[%emt 0:00:22]} 30. Kf4 {[%emt 0:02:01]} g5+ {[%emt 0:00:40]} 31. Ke3 {[%emt 0:01:48]} Bxf3 {[%emt 0:01:02]} 32. gxf3 {[%emt 0:04:00]} Rxe5+ {[%emt 0:00:29]} 33. Kf2 {[%emt 0:00:31]} Ra5 {[%emt 0:03:16]} 34. b3 {[%emt 0:06:09]} Rc5 {[%emt 0:02:14]} 35. Rxc5 {[%emt 0:01:31]} bxc5 {[%emt 0:00:12]} 36. Rd5 {[%emt 0:00:32]} Nb7 {[%emt 0:02:16]} 37. Rxd8+ {[%emt 0:00:25]} Nxd8 {[%emt 0:00:08]} 38. Bb1 {[%emt 0:02:09]} Nc6 {[%emt 0:02:17]} 39. Ke3 {[%emt 0:00:45]} Na5 {[%emt 0:01:12]} 40. Ba2 {[%emt 0:01:28]} Nc6 {[%emt 0:03:16]} 41. Ke4 {[%emt 0:16:47]} Kg7 {[%emt 0:00:00]} 42. f4 {[%emt 0:00:00]} 1/2-1/2

[Event "GER-ch Youth-U14w 2022"]
[Site "Willingen"]
[Date "2022.06.10"]
[Round "8.1"]
[White "Wartenberg, Alissa"]
[Black "Peglau, Dora"]
[Result "1/2-1/2"]
[ECO "B10"]
[WhiteElo "1741"]
[BlackElo "2008"]
[Annotator "TA"]
[PlyCount "46"]
[EventDate "2022.06.05"]
[EventType "swiss"]
[EventRounds "9"]
[EventCountry "GER"]
[SourceTitle "playchess.com"]
[Source "ChessBase"]
[SourceQuality "1"]
[TimeControl "40/4500+30:900+30"]

{[%evp 10,46,27,22,32,5,2,15,39,41,37,24,29,22,19,12,27,18,20,22,62,85,67,42,63,-10,-17,-12,-6,-15,-7,-20,-10,-14,-11,-7,-9,-17,-1]} 1. e4 {[%emt 0:00:00]} c6 {[%emt 0:00:00]} 2. Nf3 {[%emt 0:00:00]} d5 {[%emt 0:00:00]} 3. Nc3 {[%emt 0:00:00]} dxe4 {[%emt 0:00:00]} 4. Nxe4 {[%emt 0:00:00]} Nf6 {[%emt 0:00:00]} 5. Qe2 {[%emt 0:00:00]} Nxe4 {[%emt 0:00:00]} 6. Qxe4 {[%emt 0:00:00]} Qd5 {[%emt 0:00:00] B11: Caro-Kann: Two Knights Variation.} 7. Qh4 {[%emt 0:00:00]} Qe6+ {[%emt 0:00:00]} 8. Be2 {[%emt 0:00:00]} Qg4 {[%emt 0:00:00]} 9. Qxg4 {[%emt 0:00:00]} Bxg4 {[%emt 0:00:00]} 10. O-O {[%emt 0:00:00] [#]} e6 $146 {[%emt 0:00:00]} ({Predecessor:} 10... Nd7 11. d4 e6 12. Bf4 Nf6 13. Rfe1 Nd5 14. Bg3 Bb4 15. c3 Nxc3 16. bxc3 Bxc3 {0-1 (51) Sliwicki,D (2169)-Sorokin,A (2521) Chess.com INT 2021}) 11. d4 {[%emt 0:07:04]} Be7 {[%emt 0:00:00]} 12. h3 {[%emt 0:03:17]} Bh5 {[%emt 0:00:00]} 13. Bf4 {[%emt 0:03:02]} O-O {[%emt 0:00:00]} 14. c3 {[%emt 0:02:28]} c5 {[%emt 0:00:37]} 15. dxc5 {[%emt 0:05:25] White is more active.} Bxc5 {[%emt 0:01:19]} 16. Rfe1 {[%emt 0:00:39]} Nc6 {[%emt 0:04:20]} 17. Nd2 {[%emt 0:03:05]} (17. g4 $14 Bg6 18. Nh4) 17... Bxe2 $11 {[%emt 0:00:49] The position is equal.} 18. Rxe2 {[%emt 0:00:36]} Rfd8 {[%emt 0:01:27]} 19. Nb3 {[%emt 0:00:31]} Bb6 {[%emt 0:00:30]} 20. Ree1 {[%emt 0:11:02]} Rd7 {[%emt 0:01:14]} 21. Rad1 {[%emt 0:01:43]} Rad8 {[%emt 0:00:11]} 22. Rxd7 {[%emt 0:00:55]} Rxd7 {[%emt 0:00:06]} 23. Kf1 {[%emt 0:04:00]} Kf8 {Weighted Error Value: White=0.15 (very precise) /Black=0.07 (flawless)} 1/2-1/2